bitfinex-derivatives/quotes_BTCF0:USTF0_20241227
["timestamp","ask_amount","ask_price","bid_price","bid_amount"]
[1735295371887,0.017,96618.0,96614.0,0.051811]
[1735295372182,0.017,96618.0,96615.0,0.051811]
[1735295372380,0.013,96618.0,96615.0,0.051811]
[1735295372588,0.013,96618.0,96617.0,0.05181]
[1735295373181,0.01,96618.0,96617.0,0.05181]
[1735295373489,0.001,96618.0,96617.0,0.05181]
[1735295374491,0.001,96618.0,96607.0,0.051815]
[1735295374677,0.051813,96611.0,96607.0,0.051815]
[1735295375083,0.0976,96617.0,96600.0,0.10280617]
[1735295375289,0.0976,96617.0,96597.0,0.04362295]
[1735295375290,0.0976,96617.0,96615.0,0.051811]
[1735295375789,0.001,96618.0,96617.0,0.05181]
[1735295375991,0.051807,96622.0,96618.0,0.051809]
[1735295377097,0.052807,96622.0,96618.0,0.051809]
[1735295377391,0.052807,96622.0,96620.0,0.051808]
[1735295377582,0.051807,96622.0,96620.0,0.051808]
[1735295377786,0.052807,96622.0,96620.0,0.051808]
[1735295378289,0.053807,96622.0,96620.0,0.051808]
[1735295379076,0.054807,96622.0,96620.0,0.051808]
[1735295379792,0.053807,96622.0,96620.0,0.051808]
[1735295379991,0.055807,96622.0,96620.0,0.051808]
[1735295380495,0.004,96622.0,96620.0,0.051808]
[1735295386902,0.004,96622.0,96620.0,0.06113253]
[1735295395101,0.004,96622.0,96620.0,0.051808]
[1735295397109,0.12318153,96621.0,96620.0,0.051808]
[1735295398111,0.0674,96621.0,96620.0,0.051808]
[1735295399011,0.0694,96621.0,96620.0,0.051808]
[1735295399209,0.0694,96621.0,96592.0,0.0316]
[1735295399511,0.0694,96621.0,96619.0,0.051808]
[1735295400417,0.0674,96621.0,96619.0,0.051808]
[1735295400609,0.119208,96621.0,96619.0,0.051808]
[1735295400816,0.27338235,96621.0,96619.0,0.051808]
[1735295401316,0.27538235,96621.0,96619.0,0.051808]
[1735295403012,0.15417435,96620.0,96619.0,0.051808]
[1735295404009,0.06434132,96620.0,96619.0,0.051808]
[1735295404304,0.06634132,96620.0,96619.0,0.051808]
[1735295404912,0.002,96620.0,96619.0,0.051808]
[1735295406125,0.004,96620.0,96619.0,0.051808]
[1735295407021,0.10600238,96622.0,96621.0,0.051808]
[1735295407215,0.0309,96645.0,96624.0,0.051806]
[1735295407406,0.0309,96645.0,96644.0,0.051795]
[1735295407723,0.0309,96645.0,96635.0,0.10280617]
[1735295407724,0.21309143,96650.0,96649.0,0.051793]
[1735295408025,0.00088001,96658.0,96657.0,0.051788]
[1735295408320,0.00088001,96658.0,96638.0,0.051798]
[1735295408321,0.0644,96665.0,96660.0,0.051786]
[1735295408614,0.0644,96665.0,96648.0,0.10280617]
[1735295408823,0.0644,96665.0,96662.0,0.051786]
[1735295409018,0.0644,96665.0,96640.0,0.10280617]
[1735295409217,0.0644,96665.0,96654.0,0.05179]
[1735295409421,0.0644,96665.0,96644.0,0.001]
[1735295409616,0.0644,96665.0,96650.0,0.10280617]
[1735295409922,0.0644,96665.0,96663.0,0.051785]
[1735295411611,0.12310718,96674.0,96660.0,0.00976908]
[1735295411906,0.12310718,96674.0,96673.0,0.05178]
[1735295413415,0.003,96674.0,96673.0,0.05178]
[1735295413821,0.005,96674.0,96673.0,0.05178]
[1735295417915,0.005,96674.0,96666.0,0.00970321]
[1735295417916,0.12310718,96680.0,96679.0,0.051777]
[1735295418908,0.12310718,96692.0,96687.0,0.051772]
[1735295419526,0.051771,96689.0,96679.0,0.001]
[1735295419820,0.034,96688.0,96659.0,0.01113357]
[1735295420022,0.10280617,96670.0,96659.0,0.01113357]
[1735295420228,0.0659,96669.0,96634.0,0.34792]
[1735295420426,0.10280617,96660.0,96640.0,0.051797]
[1735295420616,0.10280617,96650.0,96634.0,0.34792]
[1735295420933,0.051793,96649.0,96634.0,0.0097129]
[1735295421118,0.051793,96649.0,96635.0,0.0518]
[1735295421320,0.051793,96649.0,96630.0,0.10280617]
[1735295421623,0.051788,96659.0,96643.0,0.051795]
[1735295421825,0.051788,96659.0,96645.0,0.051795]
[1735295421826,0.12310718,96646.0,96645.0,0.051795]
[1735295422621,0.12310718,96657.0,96645.0,0.051795]
[1735295423124,0.051789,96655.0,96645.0,0.052795]
[1735295423526,0.0326,96654.0,96645.0,0.052795]
[1735295423923,0.0326,96654.0,96647.0,0.051794]
[1735295424819,0.0326,96654.0,96645.0,0.001]
[1735295425026,0.0326,96654.0,96647.0,0.051794]
[1735295427330,0.0326,96654.0,96647.0,0.052794]
[1735295429125,0.0326,96654.0,96647.0,0.06259809]
[1735295430620,0.0326,96654.0,96647.0,0.001]
[1735295430817,0.051803,96630.0,96621.0,0.051807]
[1735295431424,0.051807,96623.0,96611.0,0.34792]
[1735295431721,0.05181,96616.0,96602.0,0.051818]
[1735295432034,0.051812,96614.0,96582.0,0.00155265]
[1735295432226,0.051813,96611.0,96604.0,0.051816]
[1735295432640,0.10280617,96620.0,96599.0,0.00950535]
[1735295432929,0.10280617,96620.0,96582.0,0.00155265]
[1735295432930,0.10280617,96610.0,96596.0,0.051821]
[1735295433137,0.051818,96601.0,96582.0,0.00155265]
[1735295433329,0.10280617,96600.0,96588.0,0.051825]
[1735295433519,0.10280617,96600.0,96590.0,0.051824]
[1735295433520,0.05182,96599.0,96590.0,0.051824]
[1735295434126,0.05182,96597.0,96590.0,0.051824]
[1735295434329,0.05182,96597.0,96596.0,0.005]
[1735295435230,0.0315,96608.0,96596.0,0.005]
[1735295435534,0.0315,96608.0,96596.0,0.001]
[1735295435834,0.05182,96597.0,96596.0,0.001]
[1735295436534,0.05182,96597.0,96596.0,0.004]
[1735295437028,0.05182,96597.0,96596.0,0.003]
[1735295437936,0.3,96597.0,96582.0,0.00155265]
[1735295438137,0.10280617,96592.0,96569.0,0.00972839]
[1735295438331,0.10280617,96582.0,96552.0,0.34804]
[1735295438530,0.15463517,96582.0,96567.0,0.051836]
[1735295438725,0.15463517,96582.0,96555.0,0.051843]
[1735295438932,0.08393,96581.0,96552.0,0.34804]
[1735295439336,0.08393,96581.0,96568.0,0.051836]
[1735295439523,0.05183,96579.0,96568.0,0.051836]
[1735295439932,0.051831,96578.0,96568.0,0.051836]
[1735295441035,0.052831,96578.0,96568.0,0.009]
[1735295441235,0.001,96578.0,96568.0,0.21461234]
[1735295441430,0.15291441,96612.0,96569.0,0.0335]
[1735295441622,0.15291441,96612.0,96604.0,0.051817]
[1735295441829,0.05181,96616.0,96608.0,0.051814]
[1735295442631,0.051806,96625.0,96615.0,0.051811]
[1735295443435,0.009,96616.0,96615.0,0.051811]
[1735295443635,0.06081,96616.0,96608.0,0.001]
[1735295443843,0.009,96616.0,96594.0,0.00756572]
[1735295444030,0.15461517,96620.0,96605.0,0.051816]
[1735295444226,0.10280617,96620.0,96605.0,0.051816]
[1735295444431,0.051811,96615.0,96605.0,0.051816]
[1735295444732,0.051812,96613.0,96590.0,0.10280617]
[1735295444931,0.051812,96613.0,96590.0,0.11064332]
[1735295445437,0.10380617,96620.0,96600.0,0.051818]
[1735295445739,0.051816,96605.0,96591.0,0.051823]
[1735295445952,0.051816,96605.0,96593.0,0.051823]
[1735295446434,0.051816,96605.0,96590.0,0.002]
[1735295446736,0.10280617,96610.0,96594.0,0.051822]
[1735295446737,0.051817,96604.0,96594.0,0.051822]
[1735295446936,0.10280617,96610.0,96590.0,0.006]
[1735295447141,0.051819,96600.0,96590.0,0.002]
[1735295447333,0.05182,96599.0,96593.0,0.003]
[1735295448846,0.05182,96599.0,96594.0,0.002]
[1735295449446,0.05182,96599.0,96593.0,0.004]
[1735295449937,0.05182,96599.0,96593.0,0.001]
[1735295450241,0.05182,96599.0,96594.0,0.002]
[1735295451936,0.05182,96599.0,96594.0,0.003]
[1735295452156,0.05182,96599.0,96594.0,0.001]
[1735295452743,0.05182,96598.0,96594.0,0.002]
[1735295452941,0.05182,96598.0,96581.0,0.04082858]
[1735295452942,0.10280617,96604.0,96560.0,0.10280617]
[1735295453146,0.10280617,96590.0,96571.0,0.051834]
[1735295453448,0.10280617,96590.0,96573.0,0.051833]
[1735295453449,0.051829,96582.0,96573.0,0.051833]
[1735295454345,0.051825,96589.0,96566.0,0.051837]
[1735295454544,0.051825,96589.0,96568.0,0.051836]
[1735295454737,0.051831,96578.0,96568.0,0.051836]
[1735295455046,0.051831,96578.0,96577.0,0.00455291]
[1735295455353,0.051837,96566.0,96557.0,0.051841]
[1735295456037,0.051839,96563.0,96557.0,0.051841]
[1735295456244,0.10280617,96570.0,96548.0,0.051847]
[1735295456447,0.051845,96553.0,96531.0,0.0376]
[1735295456942,0.051845,96553.0,96544.0,0.051849]
[1735295457340,0.05184,96562.0,96540.0,0.10280617]
[1735295458052,0.09193852,96564.0,96540.0,0.10280617]
[1735295458249,0.051841,96559.0,96549.0,0.051846]
[1735295459351,0.09193852,96558.0,96549.0,0.051846]
[1735295460250,0.09193852,96555.0,96549.0,0.058846]
[1735295460641,0.09193852,96555.0,96549.0,0.007]
[1735295460955,0.02943852,96555.0,96554.0,0.051844]
[1735295461137,0.15291441,96567.0,96566.0,0.051837]
[1735295461341,0.15291441,96568.0,96566.0,0.051837]
[1735295461952,0.20475041,96568.0,96558.0,0.051841]
[1735295462450,0.20575041,96568.0,96558.0,0.051841]
[1735295462758,0.051837,96567.0,96558.0,0.051841]
[1735295462945,0.051839,96564.0,96558.0,0.051841]
[1735295463145,0.001,96568.0,96558.0,0.051841]
[1735295463545,0.0343,96576.0,96558.0,0.054841]
[1735295463845,0.051837,96567.0,96558.0,0.054841]
[1735295464244,0.051832,96575.0,96565.0,0.051838]
[1735295464449,0.0343,96576.0,96565.0,0.051838]
[1735295464655,0.051837,96567.0,96558.0,0.004]
[1735295464851,0.051839,96563.0,96558.0,0.004]
[1735295465055,0.0381,96574.0,96558.0,0.001]
[1735295465354,0.051838,96565.0,96558.0,0.001]
[1735295465550,0.15467291,96570.0,96558.0,0.004]
[1735295465753,0.051845,96552.0,96546.0,0.051848]
[1735295465955,0.0379,96551.0,96538.0,0.051852]
[1735295466149,0.05185,96542.0,96538.0,0.051852]
[1735295466349,0.051851,96541.0,96532.0,0.051855]
[1735295466647,0.051851,96541.0,96534.0,0.051854]
[1735295466949,0.15467291,96550.0,96523.0,0.0381]
[1735295467170,0.051854,96534.0,96522.0,0.35908507]
[1735295467352,0.051854,96534.0,96522.0,0.34816]
[1735295468951,0.051854,96534.0,96533.0,0.00255376]
[1735295469146,0.051859,96526.0,96522.0,0.34816]
[1735295469351,0.05186,96524.0,96514.0,0.051865]
[1735295469552,0.051861,96523.0,96514.0,0.051865]
[1735295470150,0.051862,96521.0,96512.0,0.00659709]
[1735295470559,0.051863,96519.0,96512.0,0.00659709]
[1735295471650,0.001,96526.0,96512.0,0.00659709]
[1735295471954,0.001,96519.0,96517.0,0.051863]
[1735295472351,0.002,96519.0,96512.0,0.01759709]
[1735295472953,0.051863,96517.0,96512.0,0.00859709]
[1735295473152,0.051863,96517.0,96512.0,0.00659709]
[1735295473361,0.0411,96516.0,96512.0,0.00659709]
[1735295473755,0.051864,96515.0,96512.0,0.00659709]
[1735295473964,0.0411,96516.0,96500.0,0.1]
[1735295473965,0.051872,96501.0,96500.0,0.1]
[1735295474150,0.051873,96499.0,96467.0,0.05189]
[1735295474352,0.15467291,96477.0,96459.0,0.30931953]
[1735295474551,0.051892,96464.0,96459.0,0.30931953]
[1735295474961,0.15467291,96480.0,96459.0,0.30931953]
[1735295475166,0.051884,96478.0,96459.0,0.30931953]
[1735295475460,0.051886,96475.0,96467.0,0.009]
[1735295476050,0.001,96464.0,96461.0,0.002]
[1735295477165,0.001,96464.0,96462.0,0.051893]
[1735295477364,0.001,96477.0,96469.0,0.051889]
[1735295477662,0.001,96475.0,96469.0,0.051889]
[1735295477860,0.001,96475.0,96467.0,0.009]
[1735295478265,0.001,96478.0,96462.0,0.051893]
[1735295478450,0.001,96478.0,96462.0,0.060893]
[1735295478451,0.001,96464.0,96462.0,0.060893]
[1735295478759,0.001,96464.0,96462.0,0.051893]
[1735295478955,0.001,96475.0,96467.0,0.009]
[1735295479354,0.001,96475.0,96468.0,0.05189]
[1735295479664,0.001,96475.0,96467.0,0.009]
[1735295479857,0.001,96475.0,96472.0,0.051888]
[1735295480451,0.051882,96483.0,96472.0,0.051888]
[1735295480656,0.051883,96481.0,96462.0,0.011]
[1735295480858,0.15467291,96490.0,96462.0,0.011]
[1735295481169,0.051888,96471.0,96461.0,0.228493]
[1735295481372,0.051888,96471.0,96468.0,0.002]
[1735295481959,0.051888,96471.0,96461.0,0.228493]
[1735295482155,0.15467291,96480.0,96462.0,0.002]
[1735295482463,0.051892,96464.0,96462.0,0.002]
[1735295482853,0.051892,96464.0,96461.0,0.1856]
[1735295482854,0.051893,96463.0,96461.0,0.1856]
[1735295483058,0.001,96471.0,96468.0,0.05189]
[1735295483257,0.001,96471.0,96470.0,0.051889]
[1735295483557,0.001,96471.0,96461.0,0.009]
[1735295483859,0.001,96471.0,96469.0,0.051889]
[1735295484066,0.001,96471.0,96470.0,0.051889]
[1735295484362,0.001,96471.0,96450.0,0.15467291]
[1735295484363,0.001,96464.0,96463.0,0.051892]
[1735295485161,0.001,96471.0,96470.0,0.002]
[1735295485361,0.00109512,96471.0,96470.0,0.002]
[1735295485664,0.001,96471.0,96470.0,0.002]
[1735295486067,0.001,96464.0,96463.0,0.053892]
[1735295486266,0.00108718,96464.0,96463.0,0.053892]
[1735295486665,0.00208718,96464.0,96463.0,0.056892]
[1735295487560,0.00108718,96464.0,96463.0,0.054892]
[1735295488473,0.00208718,96464.0,96463.0,0.056892]
[1735295489061,0.00203649,96464.0,96463.0,0.056892]
[1735295489476,0.002,96464.0,96463.0,0.056892]
[1735295490865,9.217e-05,96464.0,96463.0,0.056892]
[1735295492777,0.051892,96465.0,96463.0,0.005]
[1735295493661,0.15467291,96480.0,96463.0,0.005]
[1735295493662,0.051887,96473.0,96463.0,0.005]
[1735295493865,0.051891,96467.0,96463.0,0.003]
[1735295494062,0.001,96465.0,96463.0,0.006]
[1735295494274,0.052892,96465.0,96463.0,0.006]
[1735295494464,0.053892,96465.0,96463.0,0.011]
[1735295494669,0.052892,96465.0,96463.0,0.008]
[1735295494865,0.001,96473.0,96463.0,0.004]
[1735295495074,0.001,96467.0,96466.0,0.051891]
[1735295495279,0.00109217,96467.0,96466.0,0.051891]
[1735295496578,9.217e-05,96467.0,96466.0,0.051891]
[1735295497275,0.00109217,96467.0,96466.0,0.054891]
[1735295497483,0.00109217,96467.0,96466.0,0.057891]
[1735295497679,0.00109217,96467.0,96450.0,0.10085014]
[1735295497874,0.00109217,96467.0,96466.0,0.051891]
[1735295498382,0.00109217,96467.0,96466.0,0.057891]
[1735295498681,0.00109217,96467.0,96450.0,0.10721334]
[1735295498876,0.00109217,96467.0,96466.0,0.051891]
[1735295499383,0.052891,96467.0,96433.0,0.0757]
[1735295499583,0.0372,96466.0,96440.0,0.15495914]
[1735295499880,0.0372,96466.0,96459.0,0.051894]
[1735295500073,0.0372,96466.0,96460.0,0.051894]
[1735295500381,0.0372,96466.0,96450.0,0.15595914]
[1735295500680,0.0382,96466.0,96464.0,0.051892]
[1735295501084,0.0392,96466.0,96464.0,0.051892]
[1735295501399,0.0382,96466.0,96464.0,0.051892]
[1735295501585,0.0392,96466.0,96464.0,0.051892]
[1735295502089,8.117e-05,96465.0,96464.0,0.051892]
[1735295503589,8.117e-05,96465.0,96464.0,0.0589164]
[1735295503884,0.00108117,96465.0,96464.0,0.0589164]
[1735295504074,0.18405967,96482.0,96464.0,0.3589164]
[1735295504277,0.10108001,96500.0,96472.0,0.15495914]
[1735295504473,0.1,96500.0,96494.0,0.051876]
[1735295504881,0.1,96500.0,96472.0,0.15495914]
[1735295505078,0.1,96500.0,96498.0,0.051874]
[1735295505686,0.05394337,96499.0,96498.0,0.051874]
[1735295506793,0.05794337,96499.0,96498.0,0.051874]
[1735295506984,0.05794337,96499.0,96498.0,0.05884279]
[1735295507186,0.06394337,96499.0,96498.0,0.05884279]
[1735295507384,0.05994337,96499.0,96498.0,0.05884279]
[1735295507582,0.008,96499.0,96498.0,0.05884279]
[1735295507785,0.005,96499.0,96498.0,0.05884279]
[1735295507990,0.0387,96522.0,96516.0,0.051864]
[1735295508387,0.0387,96522.0,96518.0,0.051863]
[1735295509192,0.0437,96522.0,96518.0,0.051863]
[1735295509984,0.0537,96522.0,96518.0,0.051863]
[1735295512208,0.0537,96522.0,96508.0,0.051868]
[1735295512604,0.051865,96514.0,96508.0,0.051868]
[1735295512896,0.0537,96522.0,96500.0,0.00687524]
[1735295513092,0.0403,96513.0,96491.0,0.18594876]
[1735295513297,0.15495914,96510.0,96491.0,0.18594876]
[1735295513492,0.051875,96495.0,96491.0,0.18594876]
[1735295513691,0.0748,96494.0,96490.0,0.051877]
[1735295514295,0.0748,96494.0,96491.0,0.001]
[1735295514296,0.051876,96493.0,96491.0,0.001]
[1735295514494,0.05188,96486.0,96483.0,0.18594876]
[1735295514693,0.0748,96494.0,96479.0,0.051884]
[1735295514999,0.051881,96484.0,96479.0,0.051884]
[1735295515298,0.051879,96489.0,96482.0,0.051882]
[1735295515484,0.05188,96488.0,96482.0,0.051882]
[1735295516987,0.05288,96488.0,96482.0,0.052882]
[1735295517188,0.001,96488.0,96486.0,0.05188]
[1735295519298,0.0369,96494.0,96493.0,0.051876]
[1735295520097,0.0369,96494.0,96486.0,0.001]
[1735295520400,0.0369,96494.0,96480.0,0.19304289]
[1735295520593,0.0369,96494.0,96480.0,0.18594876]
[1735295520794,0.0369,96494.0,96490.0,0.051878]
[1735295522799,0.0379,96494.0,96490.0,0.051878]
[1735295523189,0.089776,96494.0,96490.0,0.051878]
[1735295523496,0.0369,96494.0,96490.0,0.001]
[1735295523694,0.051877,96491.0,96490.0,0.001]
[1735295524092,0.051881,96486.0,96480.0,0.051883]
[1735295524293,0.0402,96485.0,96472.0,0.051887]
[1735295524498,0.0805,96485.0,96472.0,0.051887]
[1735295524694,0.051885,96477.0,96472.0,0.051887]
[1735295525897,0.051885,96477.0,96473.0,0.051887]
[1735295527395,0.051886,96476.0,96454.0,0.18594876]
[1735295527601,0.051886,96476.0,96465.0,0.051891]
[1735295527896,0.051886,96476.0,96454.0,0.18594876]
[1735295528093,0.051886,96476.0,96473.0,0.001]
[1735295529202,0.051887,96474.0,96470.0,0.051888]
[1735295529603,0.051887,96474.0,96460.0,0.1033153]
[1735295529803,0.051887,96474.0,96473.0,0.001]
[1735295529989,0.001,96476.0,96473.0,0.001]
[1735295531397,0.051886,96475.0,96473.0,0.001]
[1735295531901,0.001,96474.0,96470.0,0.001]
[1735295532099,0.051887,96473.0,96470.0,0.001]
[1735295532605,0.051887,96474.0,96473.0,0.001]
[1735295532801,0.001,96475.0,96462.0,0.18594876]
[1735295533005,0.051892,96464.0,96463.0,0.18594876]
[1735295533302,0.051892,96464.0,96463.0,0.00474876]
[1735295534311,0.051896,96457.0,96456.0,0.24872035]
[1735295534500,0.3,96464.0,96448.0,0.31090044]
[1735295534501,0.301,96464.0,96448.0,0.31090044]
[1735295534811,0.051902,96446.0,96444.0,0.00777365]
[1735295535009,0.051903,96444.0,96442.0,0.24872035]
[1735295536109,0.051909,96432.0,96426.0,0.24872035]
[1735295537308,0.05191,96432.0,96426.0,0.24872035]
[1735295537517,0.05191,96432.0,96424.0,0.051913]
[1735295538308,0.05191,96432.0,96410.0,0.1033153]
[1735295538309,0.001,96432.0,96420.0,0.1033153]
[1735295538618,0.001,96432.0,96431.0,0.05191]
[1735295539414,0.051898,96454.0,96445.0,0.051902]
[1735295539614,0.001,96432.0,96420.0,0.1033153]
[1735295539813,0.001,96432.0,96431.0,0.05191]
[1735295540918,0.051901,96448.0,96424.0,0.0756]
[1735295541215,0.051901,96448.0,96442.0,0.051904]
[1735295541419,0.051892,96464.0,96438.0,0.1033153]
[1735295541712,0.1033153,96460.0,96457.0,0.051895]
[1735295541902,0.1033153,96467.0,96439.0,0.0367]
[1735295542105,0.1033153,96460.0,96439.0,0.0367]
[1735295542315,0.001,96448.0,96439.0,0.0367]
[1735295542518,0.001,96448.0,96447.0,0.051901]
[1735295542723,0.051896,96457.0,96450.0,0.051899]
[1735295543331,0.051898,96453.0,96442.0,0.051904]
[1735295543626,0.051901,96448.0,96442.0,0.051904]
[1735295543832,0.051901,96447.0,96442.0,0.051904]
[1735295544830,0.1033153,96452.0,96446.0,0.051902]
[1735295545028,0.051899,96451.0,96446.0,0.051902]
[1735295547530,0.051899,96451.0,96439.0,0.0367]
[1735295547834,0.1552093,96460.0,96439.0,0.0367]
[1735295548829,0.1552093,96460.0,96441.0,0.051904]
[1735295549224,0.1033153,96451.0,96447.0,0.051901]
[1735295549735,0.1033153,96451.0,96439.0,0.0367]
[1735295549935,0.1033153,96460.0,96439.0,0.0367]
[1735295550134,0.1033153,96460.0,96451.0,0.051898]
[1735295550439,0.051898,96454.0,96444.0,0.051902]
[1735295550621,0.1033153,96460.0,96444.0,0.051902]
[1735295550825,0.1033153,96460.0,96439.0,0.0367]
[1735295551039,0.1033153,96450.0,96446.0,0.051902]
[1735295552038,0.1033153,96450.0,96448.0,0.0519]
[1735295552235,0.051896,96457.0,96451.0,0.051899]
[1735295552639,0.051896,96456.0,96451.0,0.051899]
[1735295552942,0.051896,96456.0,96434.0,0.051908]
[1735295552943,0.051906,96439.0,96434.0,0.051908]
[1735295553337,0.1033153,96449.0,96433.0,0.24872035]
[1735295553637,0.051898,96453.0,96434.0,0.051908]
[1735295553832,0.051904,96441.0,96434.0,0.051908]
[1735295554032,0.051905,96440.0,96434.0,0.051908]
[1735295554233,0.1033153,96450.0,96434.0,0.051908]
[1735295554434,0.051906,96439.0,96434.0,0.051908]
[1735295555037,0.051901,96448.0,96437.0,0.051906]
[1735295555237,0.001,96440.0,96437.0,0.051906]
[1735295556434,0.051907,96437.0,96427.0,0.051912]
[1735295556639,0.051907,96437.0,96427.0,0.30063235]
[1735295557642,0.051911,96429.0,96427.0,0.24872035]
[1735295557830,0.1043153,96440.0,96426.0,0.24872035]
[1735295557831,0.051912,96427.0,96426.0,0.24872035]
[1735295558347,0.3,96427.0,96407.0,0.37308052]
[1735295558534,0.1033153,96417.0,96407.0,0.37308052]
[1735295558840,0.051922,96409.0,96407.0,0.04316559]
[1735295559634,0.051926,96401.0,96390.0,0.051932]
[1735295559944,0.051926,96401.0,96388.0,0.00767754]
[1735295560635,0.351926,96401.0,96388.0,0.00767754]
[1735295560839,0.052926,96401.0,96388.0,0.00767754]
[1735295561037,0.052926,96401.0,96382.0,0.051936]
[1735295561439,0.164326,96401.0,96382.0,0.051936]
[1735295561635,0.052926,96401.0,96400.0,0.07135876]
[1735295561841,0.051938,96380.0,96371.0,0.0363]
[1735295562345,0.00992263,96379.0,96371.0,0.0363]
[1735295562549,0.00992463,96378.0,96371.0,0.0363]
[1735295562747,0.00992463,96377.0,96374.0,0.05194]
[1735295562943,0.00992463,96376.0,96374.0,0.05194]
[1735295563140,0.001,96380.0,96374.0,0.05194]
[1735295563141,0.00991511,96375.0,96374.0,0.05194]
[1735295563338,0.12251101,96379.0,96371.0,0.0363]
[1735295563538,0.12251101,96379.0,96364.0,0.0735]
[1735295563739,0.1033153,96374.0,96364.0,0.0735]
[1735295564144,0.001,96376.0,96367.0,0.051944]
[1735295564541,0.001,96379.0,96364.0,0.0735]
[1735295564741,0.002,96379.0,96374.0,0.05194]
[1735295566450,0.001,96376.0,96374.0,0.05194]
[1735295566649,0.001,96376.0,96375.0,0.0371]
[1735295567454,0.001,96379.0,96375.0,0.0371]
[1735295567647,0.001,96376.0,96375.0,0.0371]
[1735295570457,0.001,96376.0,96366.0,0.051944]
[1735295570662,0.20722814,96380.0,96366.0,0.051944]
[1735295570954,0.001,96376.0,96367.0,0.0389]
[1735295571151,0.001,96376.0,96356.0,0.00809564]
[1735295571345,0.001,96376.0,96345.0,0.051956]
[1735295571549,0.001,96376.0,96350.0,0.15529114]
[1735295571757,0.001,96376.0,96342.0,0.1146]
[1735295571758,0.001,96376.0,96367.0,0.051944]
[1735295571949,0.001,96376.0,96369.0,0.051943]
[1735295572150,0.001,96376.0,96372.0,0.051941]
[1735295572748,0.001,96376.0,96368.0,0.1148]
[1735295572948,0.15629114,96380.0,96368.0,0.0377]
[1735295573155,0.15629114,96380.0,96368.0,0.089644]
[1735295573354,0.051944,96368.0,96356.0,0.05195]
[1735295573551,0.15529114,96370.0,96342.0,0.0767]
[1735295573755,0.001,96376.0,96363.0,0.051946]
[1735295573950,0.15529114,96373.0,96364.0,0.0377]
[1735295574257,0.31058228,96374.0,96280.0,0.68398097]
[1735295574449,0.051959,96339.0,96315.0,0.0771]
[1735295574648,0.051959,96339.0,96331.0,0.051964]
[1735295574953,0.051959,96339.0,96315.0,0.0771]
[1735295575357,0.051959,96339.0,96319.0,0.05197]
[1735295576052,0.051959,96339.0,96304.0,0.051978]
[1735295576258,0.36039045,96339.0,96307.0,0.051976]
[1735295576460,0.15529114,96317.0,96307.0,0.051976]
[1735295576653,0.15529114,96317.0,96308.0,0.051976]
[1735295576863,0.05197,96320.0,96308.0,0.051976]
[1735295577062,0.20726114,96320.0,96308.0,0.051976]
[1735295577355,0.051975,96311.0,96300.0,0.15198]
[1735295577544,0.12251101,96344.0,96300.0,0.1]
[1735295577545,0.051979,96303.0,96300.0,0.1]
[1735295578157,0.05198,96301.0,96300.0,0.1]
[1735295578554,0.15529114,96310.0,96300.0,0.1]
[1735295578555,0.20726614,96310.0,96300.0,0.1]
[1735295578749,0.06019818,96315.0,96304.0,0.051978]
[1735295578948,0.15529114,96310.0,96300.0,0.1]
[1735295579556,0.051977,96306.0,96300.0,0.1]
[1735295579753,0.15529114,96310.0,96300.0,0.1]
[1735295579963,0.052973,96315.0,96305.0,0.051977]
[1735295580264,0.051973,96315.0,96305.0,0.051977]
[1735295580458,0.001,96310.0,96305.0,0.051977]
[1735295580758,0.001,96310.0,96300.0,0.1]
[1735295580954,0.15629114,96310.0,96300.0,0.1]
[1735295581160,0.051977,96307.0,96300.0,0.1]
[1735295581464,0.05198,96301.0,96300.0,0.1]
[1735295582162,0.20826614,96310.0,96300.0,0.1]
[1735295582362,0.20826614,96310.0,96300.0,0.15198]
[1735295582564,0.20726614,96310.0,96300.0,0.15198]
[1735295582759,0.15529114,96310.0,96300.0,0.1]
[1735295582962,0.001,96315.0,96314.0,0.051973]
[1735295583263,0.051949,96359.0,96323.0,0.051968]
[1735295583567,0.15529114,96350.0,96331.0,0.051964]
[1735295583858,0.15529114,96350.0,96324.0,0.0383]
[1735295583859,0.15529114,96350.0,96337.0,0.05196]
[1735295584065,0.20512903,96357.0,96339.0,0.051959]
[1735295584257,0.15529114,96350.0,96339.0,0.051959]
[1735295584762,0.20512903,96357.0,96339.0,0.051959]
[1735295585270,0.05195,96357.0,96339.0,0.051959]
[1735295585860,0.05395,96357.0,96339.0,0.051959]
[1735295586162,0.05495,96357.0,96339.0,0.051959]
[1735295586558,0.05295,96357.0,96339.0,0.051959]
[1735295586753,0.002,96357.0,96339.0,0.051959]
[1735295587059,0.001,96357.0,96339.0,0.051959]
[1735295587366,0.002,96357.0,96339.0,0.051959]
[1735295587867,0.001,96357.0,96325.0,0.0391]
[1735295588051,0.001,96357.0,96340.0,0.15529114]
[1735295588258,0.001,96357.0,96340.0,0.051959]
[1735295588755,0.05295,96357.0,96340.0,0.051959]
[1735295589165,0.051958,96343.0,96331.0,0.0371]
[1735295589461,0.051963,96333.0,96324.0,0.0383]
[1735295590066,0.051965,96328.0,96310.0,0.051975]
[1735295590261,0.051967,96326.0,96310.0,0.051975]
[1735295590469,0.15529114,96330.0,96310.0,0.051975]
[1735295590665,0.051969,96321.0,96310.0,0.051975]
[1735295590862,0.0085847,96341.0,96310.0,0.15529114]
[1735295591166,0.001,96333.0,96313.0,0.051973]
[1735295591465,0.001,96333.0,96307.0,0.0395]
[1735295591662,0.051966,96327.0,96317.0,0.051971]